bitfinex/quotes_SOLUSD_20240605
["timestamp","ask_amount","ask_price","bid_price","bid_amount"]
[1717586847191,2.1438,172.59,172.55,2.1442]
[1717586848114,10.66978576,172.64,172.56,2.144]
[1717586848414,10.66978576,172.64,172.56,2.1441]
[1717586848415,2.1437,172.6,172.56,2.1441]
[1717586848716,2.1436,172.61,172.56,2.1441]
[1717586857727,0.4,172.64,172.55,16.4828]
[1717586858029,0.4,172.64,172.6,2.1436]
[1717586858254,7.25,172.61,172.6,2.1436]
[1717586858904,0.4,172.64,172.6,2.1436]
[1717586860040,0.4,172.64,172.56,6.403]
[1717586860447,0.4,172.64,172.6,2.1436]
[1717586861313,2.5431,172.64,172.59,2.1437]
[1717586863426,0.4,172.64,172.59,2.1437]
[1717586864232,0.4,172.64,172.6,2.1436]
[1717586864426,2.5431,172.64,172.59,2.1437]
[1717586867462,2.1434,172.62,172.56,2.144]
[1717586867681,2.1435,172.61,172.55,2.1442]
[1717586867968,2.1436,172.6,172.54,2.1443]
[1717586871056,0.34,172.59,172.54,2.1443]
[1717586871830,2.1437,172.6,172.55,2.1442]
[1717586872044,7.25,172.56,172.55,2.1442]
[1717586873334,7.25,172.56,172.54,2.1443]
[1717586873642,2.1437,172.6,172.54,2.1443]
[1717586874148,0.34,172.59,172.55,2.1442]
[1717586875558,2.4838,172.59,172.54,2.1443]
[1717586879633,7.25,172.55,172.48,401.9405]
[1717586879833,0.34,172.59,172.55,2.1442]
[1717586880458,2.4838,172.59,172.55,2.1442]
[1717586885261,2.4838,172.59,172.54,2.1443]
[1717586887043,7.25,172.55,172.54,2.1443]
[1717586889271,2.1437,172.6,172.55,2.1442]
[1717586889640,7.25,172.56,172.55,2.1442]
[1717586893067,7.25,172.56,172.54,2.1443]
[1717586893446,2.1438,172.59,172.54,2.1443]
[1717586893649,2.1438,172.59,172.55,2.1442]
[1717586894348,2.1438,172.59,172.54,2.1443]
[1717586894863,7.25,172.55,172.54,2.1443]
[1717586895967,7.25,172.55,172.5,2.1449]
[1717586896150,0.17,172.6,172.54,2.1444]
[1717586896345,2.1438,172.59,172.54,2.1444]
[1717586897045,2.1439,172.58,172.54,2.1444]
[1717586897845,2.1439,172.58,172.53,2.1444]
[1717586902271,2.1439,172.58,172.54,2.1444]
[1717586903169,2.1439,172.58,172.53,2.1445]
[1717586904864,2.144,172.57,172.52,2.1446]
[1717586905370,2.144,172.57,172.53,2.1445]
[1717586908874,7.25,172.54,172.53,2.1445]
[1717586909076,2.1439,172.58,172.53,2.1445]
[1717586909453,7.25,172.54,172.53,2.1445]
[1717586918260,2.1439,172.58,172.53,2.1445]
[1717586932200,2.144,172.57,172.53,2.1445]
[1717586933081,2.1439,172.58,172.53,2.1445]
[1717586940900,2.1439,172.58,172.53,8.8013]
[1717586941306,2.1439,172.58,172.54,2.1444]
[1717586944387,2.1439,172.58,172.53,8.8012]
[1717586948719,2.1439,172.58,172.54,2.1444]
[1717586951194,7.25,172.55,172.49,15.011]
[1717586951391,2.1442,172.56,172.49,15.011]
[1717586952109,2.1441,172.57,172.52,2.1446]
[1717586952698,20.0,172.58,172.49,15.011]
[1717586952891,20.0,172.59,172.49,15.011]
[1717586953091,0.17,172.6,172.5,6.5711]
[1717586953398,2.1439,172.59,172.53,2.1445]
[1717586953603,7.25,172.54,172.53,2.1445]
[1717586954124,2.144,172.58,172.53,2.1445]
[1717586954409,2.1438,172.59,172.54,2.1444]
[1717586954615,7.25,172.55,172.54,2.1444]
[1717586954995,2.1438,172.59,172.54,2.1444]
[1717586955318,20.0,172.61,172.56,2.1441]
[1717586955514,2.1436,172.61,172.56,2.1441]
[1717586955712,2.1436,172.6,172.55,2.1442]
[1717586956221,7.25,172.56,172.55,2.1442]
[1717586956545,7.25,172.56,172.54,8.3364]
[1717586957406,2.1436,172.6,172.54,8.3364]
[1717586958219,7.25,172.55,172.54,8.3364]
[1717586962205,2.1438,172.59,172.54,8.3364]
[1717586962405,7.25,172.55,172.54,8.3364]
[1717586966535,2.1438,172.59,172.54,8.3364]
[1717586966716,7.25,172.55,172.54,8.3364]
[1717586967427,7.0305,172.64,172.56,2.144]
[1717586967612,2.1435,172.62,172.56,2.144]
[1717586967926,2.1435,172.61,172.56,2.144]
[1717586968112,2.1434,172.63,172.54,6.1921]
[1717586968323,2.1434,172.63,172.57,2.1439]
[1717586968629,2.5432,172.64,172.59,2.1437]
[1717586968834,2.5432,172.64,172.58,2.1438]
[1717586969210,2.1433,172.63,172.58,2.1438]
[1717586973732,2.5432,172.64,172.59,2.1438]
[1717586974026,2.1433,172.63,172.58,2.1438]
[1717586982136,0.4,172.64,172.54,6.1921]
[1717586982321,0.17,172.63,172.56,2.1441]
[1717586982825,2.1434,172.62,172.57,2.144]
[1717586984839,2.3133,172.63,172.58,2.1439]
[1717586986221,2.1434,172.62,172.57,2.144]
[1717586987123,2.3133,172.63,172.58,2.1439]
[1717586991234,0.17,172.62,172.58,2.1439]
[1717586994071,0.17,172.62,172.59,2.1437]
[1717586994352,0.17,172.62,172.58,2.1438]
[1717586995147,0.17,172.62,172.59,2.1437]
[1717586995450,0.34,172.63,172.59,2.1437]
[1717586996259,2.4833,172.63,172.59,2.1437]
[1717586996443,2.4833,172.63,172.58,2.1439]
[1717586997657,2.1434,172.62,172.57,2.1439]
[1717586997836,0.34,172.63,172.54,6.1921]
[1717586998050,2.4834,172.63,172.57,2.1439]
[1717586998363,2.4833,172.63,172.58,2.1438]
[1717587000041,2.1434,172.62,172.58,2.1438]
[1717587000238,0.34,172.63,172.54,6.1921]
[1717587000239,0.4,172.64,172.59,2.1437]
[1717587001373,2.1433,172.63,172.59,2.1437]
[1717587002164,2.1433,172.63,172.58,2.1438]
[1717587002351,0.4,172.64,172.54,22.7148]
[1717587002761,0.4,172.64,172.6,2.1435]
[1717587004156,0.4,172.64,172.61,2.1435]
[1717587005056,0.4,172.64,172.6,2.1436]
[1717587006170,7.25,172.61,172.6,2.1436]
[1717587007355,7.25,172.61,172.59,2.1438]
[1717587008087,7.25,172.62,172.58,2.1439]
[1717587008568,7.25,172.62,172.5,21.9372]
[1717587008774,2.1437,172.6,172.55,2.1442]
[1717587009272,2.1437,172.6,172.56,2.1441]
[1717587009473,22.1436,172.61,172.56,2.1441]
[1717587009973,22.1436,172.61,172.57,2.144]
[1717587010350,20.0,172.61,172.57,2.144]
[1717587011486,22.1435,172.61,172.56,2.1441]
[1717587011853,20.0,172.61,172.56,2.1441]
[1717587012257,22.1436,172.61,172.56,2.1441]
[1717587012480,2.1437,172.6,172.54,2.1443]
[1717587012857,2.1437,172.6,172.55,2.1442]
[1717587013058,8.4696,172.6,172.54,2.1443]
[1717587013697,2.144,172.57,172.51,2.1447]
[1717587013995,0.34,172.59,172.52,2.1446]
[1717587013996,2.1439,172.58,172.52,2.1446]
[1717587014169,0.17,172.57,172.52,2.1446]
[1717587014766,2.3141,172.57,172.46,15.4105]
[1717587014994,2.3141,172.57,172.47,21.73991781]
[1717587015287,6.6084,172.57,172.52,2.1446]
[1717587016364,7.25,172.53,172.52,2.1446]
[1717587017681,6.6084,172.57,172.53,2.1444]
[1717587018281,20.17,172.59,172.53,2.1444]
[1717587018469,0.17,172.58,172.53,2.1444]
[1717587018681,2.3138,172.59,172.53,2.1444]
[1717587019081,2.1439,172.58,172.53,2.1444]
[1717587019267,2.3139,172.58,172.53,2.1444]
[1717587019467,0.17,172.58,172.53,2.1444]
[1717587019989,0.17,172.58,172.54,2.1444]
[1717587021773,0.17,172.58,172.53,2.1444]
[1717587023070,2.3139,172.58,172.53,2.1444]
[1717587023574,7.25,172.54,172.53,2.1444]
[1717587027986,2.3138,172.59,172.54,2.1444]
[1717587029890,7.25,172.55,172.54,2.1444]
[1717587031619,7.25,172.55,172.53,2.1444]
[1717587033002,2.1439,172.58,172.53,2.1444]
[1717587034989,2.144,172.57,172.52,2.1446]
[1717587035196,8.3417,172.57,172.52,2.1446]
[1717587037509,6.1977,172.57,172.53,2.1445]
[1717587042611,22.5362,172.56,172.41,0.4]
[1717587042812,2.145,172.5,172.46,2.1454]
[1717587043014,8.2501,172.51,172.46,2.1454]
[1717587043194,2.3149,172.5,172.45,2.1454]
[1717587043614,2.3149,172.5,172.41,0.4]
[1717587043615,0.17,172.5,172.46,2.1454]
[1717587045419,2.3149,172.5,172.46,2.1454]
[1717587046225,8.7013,172.49,172.45,2.1455]
[1717587046395,6.5563,172.49,172.45,2.1455]
[1717587046795,6.5563,172.49,172.46,2.1454]
[1717587048710,0.17,172.5,172.46,2.1454]
[1717587049607,0.34,172.5,172.47,2.1452]
[1717587049804,0.34,172.5,172.46,2.1453]
[1717587050419,9.0379,172.5,172.46,2.1453]
[1717587050926,6.893,172.5,172.46,2.1453]
[1717587052137,6.893,172.5,172.47,2.1452]
[1717587052437,7.25,172.48,172.47,2.1452]
[1717587053127,7.25,172.48,172.46,2.1453]
[1717587053423,8.5768,172.49,172.45,2.1455]
[1717587053631,6.4318,172.49,172.45,2.1455]
[1717587055531,8.5768,172.49,172.45,2.1455]
[1717587056337,7.25,172.46,172.45,2.1455]
[1717587069342,7.25,172.46,172.41,0.4]
[1717587069517,8.7486,172.48,172.43,2.1457]
[1717587069719,2.1453,172.47,172.43,2.1457]
[1717587069929,8.7487,172.47,172.43,2.1457]
[1717587071439,6.6034,172.47,172.43,2.1457]
[1717587071714,8.7487,172.47,172.43,2.1457]
[1717587072451,6.6034,172.47,172.43,2.1457]
[1717587073175,8.7487,172.47,172.43,2.1457]
[1717587075155,6.6034,172.47,172.43,2.1457]
[1717587078670,8.7487,172.47,172.43,2.1457]
[1717587079171,2.1453,172.47,172.43,2.1457]
[1717587079359,2.1452,172.48,172.44,2.1456]
[1717587079559,0.17,172.47,172.44,2.1456]
[1717587080153,0.17,172.47,172.43,2.1457]
[1717587080358,7.25,172.44,172.43,2.1457]
[1717587086675,2.1452,172.48,172.44,2.1456]
[1717587088171,7.25,172.45,172.44,2.1456]
[1717587089557,0.17,172.49,172.45,2.1455]
[1717587089758,22.145,172.5,172.45,2.1454]
[1717587091078,2.145,172.49,172.45,2.1454]
[1717587091393,7.25,172.46,172.45,2.1454]
[1717587095190,2.145,172.49,172.45,2.1454]
[1717587095482,2.1449,172.5,172.45,2.1454]
[1717587096082,2.145,172.49,172.45,2.1454]
[1717587097387,2.145,172.49,172.44,2.1456]
[1717587105784,2.1451,172.48,172.44,2.1456]
[1717587109877,7.25,172.45,172.44,2.1456]
[1717587117998,7.25,172.45,172.43,2.1457]
[1717587118201,2.1454,172.46,172.41,0.4]
[1717587119103,2.1453,172.47,172.41,0.4]
[1717587121205,0.17,172.48,172.43,2.1457]
[1717587121397,20.34,172.49,172.43,2.1457]
[1717587121581,2.1453,172.47,172.43,2.1457]
[1717587123916,2.1452,172.48,172.43,2.1457]
[1717587124096,0.17,172.47,172.43,2.1457]
[1717587124802,2.3153,172.47,172.43,2.1457]
[1717587127310,2.3153,172.47,172.41,0.4]
[1717587127311,2.1455,172.45,172.41,0.4]
[1717587127619,2.1454,172.46,172.42,2.1459]
[1717587127923,2.1454,172.46,172.41,2.546]
[1717587129618,2.1454,172.46,172.42,2.1459]
[1717587129781,2.1454,172.46,172.41,2.5459]
[1717587129984,2.1454,172.46,172.42,2.1458]
[1717587130486,7.25,172.43,172.42,2.1458]
[1717587131721,7.25,172.43,172.41,2.5459]
[1717587132924,7.25,172.43,172.42,2.1459]
[1717587133122,2.1454,172.46,172.42,2.1459]
[1717587133123,7.25,172.44,172.42,2.1459]
[1717587134624,7.25,172.44,172.41,2.546]
[1717587139523,0.17,172.45,172.41,2.546]
[1717587139732,7.25,172.42,172.41,2.546]
[1717587144625,7.25,172.42,172.41,0.4]
[1717587145010,7.25,172.42,172.41,2.546]
[1717587150425,7.25,172.42,172.41,0.4]
[1717587151032,9.3959,172.42,172.41,0.4]
[1717587151931,7.25,172.42,172.41,0.4]
[1717587154013,7.25,172.42,172.41,0.4]
[1717587154238,7.42,172.42,172.41,0.4]
[1717587154621,9.5659,172.42,172.41,0.4]
[1717587158529,60.6959,172.42,172.41,0.4]
[1717587158845,106.31828687,172.42,172.41,0.4]
[1717587159218,122.05788687,172.42,172.41,0.4]
[1717587159930,122.05788687,172.42,172.34,0.8948924]
[1717587159931,2.1466,172.37,172.34,0.8948924]
[1717587160245,6.13,172.33,172.22,0.03611295]
[1717587160457,2.1473,172.31,172.22,0.03611295]
[1717587160742,0.17,172.3,172.26,2.1479]
[1717587161114,0.17,172.3,172.22,0.03611295]
[1717587161316,17.39,172.3,172.22,0.03611295]
[1717587161539,23.6838,172.28,172.22,0.03611295]
[1717587161742,2.1482,172.23,172.17,0.816313]
[1717587161923,2.1485,172.21,172.17,0.816313]
[1717587162126,0.17,172.2,172.17,0.816313]
[1717587162330,2.149,172.18,172.11,2.1496]
[1717587162625,0.17,172.17,172.07,1.479013]
[1717587162829,0.17,172.17,172.13,2.1494]
[1717587163126,0.17,172.17,172.14,2.1494]
[1717587163328,0.17,172.17,172.07,1.479013]
[1717587163538,0.17,172.18,172.12,2.1495]
[1717587163722,0.34,172.18,172.08,4.3001]
[1717587164433,0.34,172.18,172.11,2.1497]
[1717587164641,0.34,172.18,172.08,4.3001]
[1717587164846,2.4889,172.18,172.11,2.1497]
[1717587165023,0.34,172.18,172.11,2.1497]
[1717587165226,0.34,172.18,172.06,3.04205452]
[1717587165444,65.34,172.19,172.06,9.56075452]
[1717587165637,45.34,172.19,172.11,2.1497]
[1717587165831,20.0,172.18,172.06,9.56075452]
[1717587166038,20.0,172.22,172.07,23.7544]
[1717587166247,20.0,172.22,172.16,2.1491]
[1717587167047,0.4,172.24,172.09,7.25]
[1717587167358,0.4,172.24,172.1,65.17]
[1717587167653,2.5481,172.24,172.18,2.1489]
[1717587167826,0.4,172.24,172.1,107.17]
[1717587168151,7.25,172.18,172.12,13.7515]
[1717587168327,7.25,172.18,172.17,24.6919]
[1717587168527,0.4,172.24,172.19,2.1486]
[1717587168742,0.4,172.24,172.2,2.1486]
[1717587168948,7.25,172.21,172.18,6.4372]
[1717587169146,0.4,172.24,172.18,22.8245]
[1717587169352,0.4,172.24,172.21,2.1484]
[1717587169646,0.4,172.24,172.18,6.4589]
[1717587169647,0.4,172.24,172.22,2.1483]
[1717587169834,0.4,172.24,172.21,2.1485]
[1717587170648,0.4,172.24,172.22,2.1484]
[1717587170843,0.4,172.24,172.23,2.1482]
[1717587172143,0.4,172.24,172.23,8.6306]
[1717587172328,0.4,172.24,172.23,24.6316]
[1717587172933,0.4,172.24,172.23,19.6316]
[1717587173152,7.65,172.24,172.23,3.6306]
[1717587173733,7.65,172.24,172.23,2.1482]
[1717587174751,0.4,172.24,172.23,2.1482]
[1717587175451,0.4,172.24,172.23,18.4099]
[1717587175956,0.4,172.24,172.23,24.7121]
[1717587177851,0.4,172.24,172.23,8.4504]
[1717587178643,0.4,172.24,172.23,2.1482]
[1717587181956,0.4,172.24,172.23,8.4649]
[1717587186264,0.4,172.34,172.3,2.1472]
[1717587186467,7.25,172.31,172.3,2.1472]
[1717587187057,0.4,172.34,172.3,2.1472]
[1717587187271,0.4,172.34,172.24,20.0]
[1717587188180,0.17,172.33,172.24,15.8109]
[1717587188340,2.317,172.33,172.24,15.8109]
[1717587188539,0.17,172.33,172.24,15.8109]
[1717587189194,0.4,172.34,172.24,15.8109]
[1717587190948,0.4,172.34,172.25,45.0]
[1717587191803,7.25,172.31,172.26,20.17]
[1717587191979,7.25,172.31,172.28,21.2149]
[1717587192448,0.4,172.34,172.28,21.2149]
[1717587193755,0.4,172.34,172.29,45.0]
[1717587194283,0.4,172.34,172.28,21.2149]
[1717587195683,7.65,172.34,172.3,22.4798]
[1717587196155,7.65,172.34,172.29,65.17]
[1717587196156,0.4,172.34,172.31,6.0505]
[1717587196363,0.4,172.34,172.31,42.4798]
[1717587196580,0.4,172.34,172.31,22.4798]
[1717587197579,0.4,172.34,172.32,45.0]
[1717587197779,0.4,172.34,172.33,22.8249]
[1717587198880,0.4,172.44,172.33,87.9949]
[1717587199066,0.4,172.44,172.34,26.1819]
[1717587199263,7.65,172.44,172.34,26.1819]
[1717587199470,0.4,172.44,172.34,26.1819]
[1717587199783,7.65,172.44,172.34,26.1819]
[1717587200286,7.15,172.44,172.34,26.1819]
[1717587200663,7.15,172.44,172.35,45.17]
[1717587200862,9.2956,172.44,172.35,45.0]
[1717587201093,9.2956,172.44,172.34,26.1819]
[1717587201383,9.2957,172.44,172.34,26.1819]
[1717587204311,7.15,172.44,172.34,26.1819]
[1717587213109,7.15,172.44,172.34,20.0]
[1717587213396,7.15,172.44,172.33,20.0]
[1717587213702,6.3079,172.46,172.34,45.17]
[1717587213896,7.25,172.41,172.35,27.25]
[1717587214075,6.3079,172.46,172.36,67.957]
[1717587214279,6.3079,172.46,172.37,20.0]
[1717587214477,6.3079,172.46,172.38,45.0]
[1717587215193,2.1449,172.5,172.39,20.0]
[1717587215495,6.5362,172.51,172.4,45.0]
[1717587215496,8.681,172.51,172.4,45.0]
[1717587215707,7.25,172.44,172.4,45.0]
[1717587216507,8.681,172.51,172.4,45.0]
[1717587216835,8.681,172.51,172.41,20.0]
[1717587217191,6.5362,172.51,172.41,20.0]
[1717587217589,8.681,172.51,172.41,20.0]
[1717587218313,6.5362,172.51,172.41,20.0]
[1717587231033,2.3146,172.52,172.41,20.0]
[1717587232132,2.1446,172.52,172.42,45.0]
[1717587232430,2.5444,172.54,172.43,6.5402]
[1717587232625,0.4,172.54,172.44,45.0]
[1717587232829,2.5444,172.54,172.44,45.0]
[1717587233425,0.4,172.54,172.44,45.0]
[1717587234521,7.25,172.53,172.44,45.0]
[1717587236936,0.4,172.54,172.44,45.0]
[1717587237242,7.25,172.48,172.45,15.2944]
[1717587237410,7.25,172.48,172.45,21.3306]
[1717587238536,7.25,172.48,172.46,6.138]
[1717587238745,0.4,172.54,172.46,16.6506]
[1717587242623,0.4,172.54,172.47,20.0]
[1717587243411,0.4,172.54,172.47,25.794]
[1717587246423,0.4,172.54,172.47,20.0]
[1717587247444,0.4,172.54,172.48,0.6252021]
[1717587247656,0.4,172.54,172.48,45.0]
[1717587247830,0.4,172.54,172.5,22.537]
[1717587248030,0.4,172.54,172.51,6.80339379]
[1717587248338,0.4,172.54,172.52,0.3222751]
[1717587249265,0.4,172.54,172.51,6.4811]
[1717587250053,0.4,172.54,172.5,16.0559]
[1717587250626,0.4,172.54,172.48,45.0]
[1717587250828,0.4,172.54,172.49,20.0]
[1717587251533,0.4,172.54,172.49,26.382]
[1717587252152,0.4,172.54,172.5,6.1706]
[1717587252347,0.4,172.54,172.5,21.4557]
[1717587252646,0.4,172.54,172.51,6.1706]
[1717587252850,7.65,172.54,172.51,6.1706]
[1717587253050,0.4,172.54,172.53,22.3507]
[1717587254840,0.4,172.54,172.5,21.192]
[1717587255049,0.4,172.54,172.51,20.0]
[1717587255762,0.4,172.54,172.53,22.7292]
[1717587256257,0.4,172.54,172.53,67.7292]
[1717587257656,0.4,172.54,172.5,6.4854]
[1717587257953,0.4,172.54,172.51,20.0]
[1717587258853,0.4,172.54,172.51,26.1877]
[1717587263376,0.4,172.54,172.51,20.0]
[1717587263686,0.4,172.54,172.47,380.3]
[1717587264059,0.4,172.54,172.46,41.3348]
[1717587264855,0.4,172.54,172.47,20.0]
[1717587265555,0.4,172.54,172.48,45.0]
[1717587265755,0.4,172.54,172.49,20.0]
[1717587270478,0.4,172.54,172.5,45.17]
[1717587270779,0.4,172.54,172.51,20.0]
[1717587270946,0.4,172.54,172.51,26.4332]
[1717587271552,7.65,172.54,172.51,26.4332]
[1717587273982,7.65,172.54,172.51,20.0]
[1717587280586,7.25,172.52,172.51,20.0]
[1717587281385,7.25,172.52,172.49,20.0]
[1717587281959,7.25,172.52,172.47,20.0]
[1717587282156,7.25,172.52,172.48,45.17]
[1717587282361,7.25,172.52,172.49,20.0]
[1717587282774,0.4,172.54,172.49,20.0]
[1717587282975,7.25,172.52,172.49,20.0]
[1717587283980,0.4,172.54,172.5,45.0]
[1717587284384,0.4,172.54,172.51,20.0]
[1717587285598,7.25,172.52,172.51,20.0]
[1717587285765,7.25,172.52,172.48,0.17]
[1717587286090,0.4,172.54,172.47,20.0]
[1717587287087,0.4,172.54,172.48,45.0]
[1717587287399,0.4,172.54,172.49,35.1485]
[1717587287610,0.4,172.54,172.5,45.0]
[1717587288590,7.65,172.54,172.5,45.0]
[1717587289385,0.4,172.54,172.5,45.0]
[1717587291093,0.4,172.54,172.49,20.0]
[1717587291283,0.4,172.54,172.48,20.17]
[1717587291589,0.4,172.54,172.49,45.0]
[1717587291776,0.4,172.54,172.5,20.0]
[1717587292290,0.4,172.54,172.51,45.0]
[1717587293072,0.4,172.54,172.52,20.0]
[1717587310388,0.4,172.54,172.47,380.3]
[1717587310589,0.4,172.54,172.48,45.17]
[1717587310899,0.4,172.54,172.48,460.22]
[1717587311099,0.4,172.54,172.49,0.17]
[1717587311781,0.4,172.54,172.49,20.17]
[1717587311985,0.4,172.54,172.5,45.17]
[1717587312208,0.4,172.54,172.51,20.0]
[1717587318799,0.4,172.54,172.49,20.0]
[1717587321117,7.25,172.5,172.48,380.3]
[1717587321291,7.25,172.49,172.48,380.3]
[1717587321497,7.25,172.49,172.41,409.01331661]
[1717587321805,6.7162,172.54,172.41,400.58861661]
[1717587321995,6.7162,172.54,172.41,435.34861661]
[1717587322910,7.25,172.53,172.42,72.59]
[1717587324425,7.25,172.53,172.42,107.35]
[1717587324712,7.25,172.53,172.43,7.25]
[1717587324931,7.25,172.53,172.44,65.17]
[1717587326711,7.25,172.53,172.44,65.0]
[1717587330414,15.8426,172.52,172.44,65.0]
[1717587330592,15.8426,172.52,172.44,20.0]
[1717587330787,15.8426,172.52,172.43,20.0]
[1717587331596,15.8426,172.52,172.41,20.0]
[1717587331935,15.8426,172.52,172.42,45.0]
[1717587332106,15.8426,172.52,172.43,20.0]
[1717587340543,6.7162,172.54,172.44,45.0]
[1717587341349,6.7162,172.54,172.45,20.17]
[1717587341519,6.7162,172.54,172.46,45.61522903]
[1717587342033,6.7162,172.54,172.47,0.17]
[1717587342338,6.7162,172.54,172.47,20.17]
[1717587342504,6.7162,172.54,172.48,45.0]
[1717587345530,6.7162,172.54,172.47,20.0]
[1717587345737,6.7162,172.54,172.45,20.0]
[1717587345915,6.7162,172.54,172.46,45.17]
[1717587346110,6.7162,172.54,172.47,65.0]
[1717587346420,6.7162,172.54,172.47,20.0]
[1717587346820,6.7162,172.54,172.46,20.17]
[1717587347020,6.7162,172.54,172.47,45.0]
[1717587347223,6.7162,172.54,172.48,20.0]
[1717587360639,6.7162,172.54,172.45,20.0]
[1717587361026,6.7162,172.54,172.44,20.0]
[1717587362043,6.7162,172.54,172.45,45.0]
[1717587362250,6.7162,172.54,172.46,20.0]
[1717587370828,6.7162,172.54,172.42,380.3]
[1717587371029,6.3903,172.52,172.42,380.3]
[1717587372343,8.5349,172.52,172.42,380.3]
[1717587372563,15.7479,172.51,172.37,415.06]
[1717587372744,15.7479,172.51,172.38,20.0]
[1717587373831,15.7479,172.51,172.39,45.17]
[1717587374032,15.7479,172.51,172.4,20.0]
[1717587374251,15.7479,172.51,172.41,45.0]
[1717587374443,15.7479,172.51,172.42,20.0]
[1717587380863,15.7479,172.51,172.39,0.17]
[1717587381362,15.7479,172.51,172.39,45.0]
[1717587381559,15.7479,172.51,172.4,20.0]
[1717587383274,6.6568,172.5,172.4,20.0]
[1717587383446,0.17,172.49,172.4,20.0]
[1717587392775,6.6568,172.5,172.4,20.0]
[1717587393074,6.6568,172.5,172.41,45.0]
[1717587393255,6.6568,172.5,172.42,20.0]
[1717587400876,6.6568,172.5,172.43,45.0]
[1717587404577,6.6568,172.5,172.43,39.541074]
[1717587405279,6.6568,172.5,172.44,20.0]
[1717587405659,7.25,172.48,172.45,0.17]
[1717587406285,7.25,172.53,172.44,20.0]
[1717587406661,7.25,172.53,172.45,45.0]
[1717587408567,6.8001,172.54,172.45,45.0]
[1717587408770,7.25,172.53,172.45,45.0]
[1717587410012,6.8001,172.54,172.45,45.0]
[1717587410171,6.8001,172.54,172.46,20.0]
[1717587411789,6.8001,172.54,172.47,45.0]
[1717587412688,7.25,172.49,172.47,45.0]
[1717587413776,6.8001,172.54,172.47,45.0]
[1717587416497,6.8001,172.54,172.46,20.0]
[1717587416795,6.8001,172.54,172.44,20.0]
[1717587417025,7.25,172.47,172.44,20.0]
[1717587417183,6.8001,172.54,172.44,20.0]
[1717587418088,6.8001,172.54,172.45,45.0]
[1717587418279,6.8001,172.54,172.46,20.0]
[1717587420083,7.25,172.53,172.46,20.0]
[1717587420280,6.8001,172.54,172.46,20.0]
[1717587424498,7.25,172.48,172.46,20.0]
[1717587424707,6.8001,172.54,172.46,20.0]
[1717587425398,7.25,172.48,172.46,20.0]
[1717587432428,13.7696,172.53,172.42,380.3]
[1717587433685,13.7696,172.53,172.43,20.0]
[1717587434206,13.7696,172.53,172.41,25.795]